[Event "1st Archibald 2019"]
[Site "Sochi"]
[Date "2019.05.19"]
[Round "9.18"]
[White "Yandarbiev, Ruslan"]
[Black "Bimiev, Ahmad"]
[Result "0-1"]
[ECO "A06"]
[WhiteElo "2279"]
[BlackElo "2196"]
[Annotator "NA RC"]
[PlyCount "62"]
[EventDate "2019.05.12"]
[EventType "swiss"]
[EventCountry "RUS"]
[SourceTitle "playchess.com"]
[Source "ChessBase"]
[SourceQuality "1"]
[TimeControl "5400+30"]

1. b3 {[%emt 0:00:00]} c5 {[%emt 0:00:15]} 2. Bb2 {[%emt 0:00:06]} Nc6 {[%emt 0:00:06]} 3. e3 {[%emt 0:00:12]} Nf6 {[%emt 0:00:14]} 4. Nf3 {[%emt 0:00:19]} d5 {[%emt 0:01:31]} 5. Bb5 {[%emt 0:00:46]} Bd7 {[%emt 0:00:08]} 6. O-O {[%emt 0:00:14]} e6 {[%emt 0:00:09]} 7. d3 {[%emt 0:00:16]} a6 {[%emt 0:00:13]} 8. Bxc6 {[%emt 0:00:13]} Bxc6 {[%emt 0:00:08]} 9. Nbd2 {[%emt 0:00:10]} Bd6 {[%emt 0:00:11]} 10. Ne5 {[%emt 0:00:34]} O-O {[%emt 0:00:45]} 11. c4 {[%emt 0:00:30]} Nd7 {[%emt 0:01:36]} 12. Ndf3 {[%emt 0:00:30]} f6 {[%emt 0:01:31]} 13. Nxd7 {[%emt 0:00:47]} Qxd7 {[%emt 0:00:09]} 14. cxd5 {[%emt 0:00:14]} exd5 {[%emt 0:00:29]} 15. h3 {[%emt 0:00:36]} Kh8 {[%emt 0:00:58]} 16. d4 {[%emt 0:00:14]} c4 {[%emt 0:00:19]} 17. Qd2 {[%emt 0:01:18]} b5 {[%emt 0:00:38]} 18. Bc3 {[%emt 0:00:06]} Qe7 {[%emt 0:01:43]} 19. b4 {[%emt 0:00:16]} Bd7 {[%emt 0:00:47]} 20. a3 {[%emt 0:00:16]} Bf5 {[%emt 0:00:17]} 21. a4 {[%emt 0:00:29]} a5 {[%emt 0:05:01]} 22. Rfb1 {[%emt 0:03:53]} Bxb1 {[%emt 0:00:35]} 23. Rxb1 {[%emt 0:00:01]} axb4 {[%emt 0:00:16]} 24. Bxb4 {[%emt 0:00:05]} Bxb4 {[%emt 0:00:15]} 25. Rxb4 {[%emt 0:00:19]} bxa4 {[%emt 0:00:12]} 26. Rb2 {[%emt 0:00:08]} a3 {[%emt 0:00:47]} 27. Ra2 {[%emt 0:00:12]} Rfb8 {[%emt 0:00:16]} 28. Qc2 {[%emt 0:01:04]} Qe4 {[%emt 0:00:48]} 29. Qd2 {[%emt 0:02:13]} Qb1+ {[%emt 0:00:37]} 30. Kh2 {[%emt 0:00:22]} Rb2 {[%emt 0:00:19]} 31. Rxb2 {[%emt 0:00:34]} Qxb2 {[%emt 0:00:20]} 0-1

[Event "1st Archibald 2019"]
[Site "Sochi"]
[Date "2019.05.19"]
[Round "9.19"]
[White "Potapova, Margarita"]
[Black "Novikov, Evgenij"]
[Result "1-0"]
[ECO "D37"]
[WhiteElo "2253"]
[BlackElo "2148"]
[Annotator "NA RC"]
[PlyCount "89"]
[EventDate "2019.05.12"]
[EventType "swiss"]
[EventCountry "RUS"]
[SourceTitle "playchess.com"]
[Source "ChessBase"]
[SourceQuality "1"]
[TimeControl "5400+30"]

1. d4 {[%emt 0:00:00]} d5 {[%emt 0:00:07]} 2. c4 {[%emt 0:00:09]} e6 {[%emt 0:00:04]} 3. Nc3 {[%emt 0:00:06]} Nf6 {[%emt 0:00:06]} 4. Nf3 {[%emt 0:00:04]} Be7 {[%emt 0:00:43]} 5. Bf4 {[%emt 0:00:08]} b6 {[%emt 0:02:15]} 6. e3 {[%emt 0:01:30]} O-O {[%emt 0:00:26]} 7. cxd5 {[%emt 0:00:06]} exd5 {[%emt 0:01:28]} 8. Ne5 {[%emt 0:01:05]} c5 {[%emt 0:01:03]} 9. Bd3 {[%emt 0:02:56]} Bb7 {[%emt 0:03:49]} 10. O-O {[%emt 0:05:54]} Nc6 {[%emt 0:02:23]} 11. Rc1 {[%emt 0:13:41]} a6 {[%emt 0:07:13]} 12. dxc5 {[%emt 0:02:56]} bxc5 {[%emt 0:00:04]} 13. Na4 {[%emt 0:08:32]} c4 {[%emt 0:09:48]} 14. Bb1 {[%emt 0:03:03]} Rc8 {[%emt 0:11:00]} 15. Nc3 {[%emt 0:06:31]} Qb6 $11 {[%emt 0:07:16]} 16. Qe2 {[%emt 0:08:34]} Nxe5 {[%emt 0:04:25]} 17. Bxe5 {[%emt 0:00:08]} Qe6 {[%emt 0:00:08]} 18. Bd4 {[%emt 0:01:15]} Rfd8 {[%emt 0:01:23]} 19. Qf3 {[%emt 0:01:19]} Ne4 {[%emt 0:01:13]} 20. Rfd1 {[%emt 0:03:29]} f5 {[%emt 0:03:07]} 21. Ne2 {[%emt 0:01:28]} g6 {[%emt 0:01:03]} 22. Qf4 {[%emt 0:05:07]} Bd6 {[%emt 0:02:38]} 23. Qh6 {[%emt 0:02:47]} Bf8 {[%emt 0:00:05]} 24. Qf4 {[%emt 0:01:37]} Bd6 {[%emt 0:00:17]} 25. Qh6 {[%emt 0:00:37]} Bf8 {[%emt 0:00:06]} 26. Qh3 {[%emt 0:01:28]} Qf7 {[%emt 0:04:06]} 27. Bxe4 {[%emt 0:00:46]} dxe4 {[%emt 0:01:07]} 28. g3 {[%emt 0:07:18]} Rc6 {[%emt 0:01:16]} 29. Qf1 {[%emt 0:00:58]} g5 {[%emt 0:01:46]} 30. Bc3 {[%emt 0:02:51]} Rd3 {[%emt 0:00:33]} 31. Nd4 {[%emt 0:01:53]} Rh6 {[%emt 0:00:24]} 32. Qe2 {[%emt 0:00:39]} g4 {[%emt 0:07:37]} 33. Qf1 {[%emt 0:01:01]} Rd6 {[%emt 0:02:15]} 34. Ne2 {[%emt 0:00:51]} Qd7 {[%emt 0:00:21]} 35. Re1 {[%emt 0:00:10]} Bh6 {[%emt 0:01:29]} 36. Be5 {[%emt 0:00:27]} Rxe3 {[%emt 0:01:53]} 37. Bxd6 {[%emt 0:02:14]} Qxd6 {[%emt 0:00:27]} 38. fxe3 {[%emt 0:03:54]} Bxe3+ {[%emt 0:00:06]} 39. Kh1 {[%emt 0:00:20]} Bxc1 {[%emt 0:06:51]} 40. Nxc1 {[%emt 0:00:05]} e3+ {[%emt 0:12:50]} 41. Kg1 {[%emt 0:00:04]} Qc5 {[%emt 0:00:07]} 42. Re2 {[%emt 0:00:19]} c3 {[%emt 0:01:17]} 43. bxc3 {[%emt 0:00:42]} Qxc3 {[%emt 0:00:15]} 44. Nb3 {[%emt 0:01:11]} Bf3 {[%emt 0:03:21]} 45. Qe1 {[%emt 0:00:20]} 1-0

[Event "1st Archibald 2019"]
[Site "Sochi"]
[Date "2019.05.19"]
[Round "9.20"]
[White "Yudkevich, Mikhail"]
[Black "Azimov, Ilyas"]
[Result "1/2-1/2"]
[ECO "A62"]
[WhiteElo "1971"]
[BlackElo "2223"]
[Annotator "NA RC"]
[PlyCount "205"]
[EventDate "2019.05.12"]
[EventType "swiss"]
[EventCountry "RUS"]
[SourceTitle "playchess.com"]
[Source "ChessBase"]
[SourceQuality "1"]
[TimeControl "5400+30"]

1. d4 {[%emt 0:00:00]} Nf6 {[%emt 0:00:11]} 2. c4 {[%emt 0:00:12]} e6 {[%emt 0:00:29]} 3. g3 {[%emt 0:00:08]} c5 {[%emt 0:00:09]} 4. d5 {[%emt 0:00:09]} exd5 {[%emt 0:00:06]} 5. cxd5 {[%emt 0:00:03]} d6 {[%emt 0:00:03]} 6. Nc3 {[%emt 0:00:10]} g6 {[%emt 0:00:06]} 7. Bg2 {[%emt 0:00:09]} Bg7 {[%emt 0:00:09]} 8. Nf3 {[%emt 0:00:09]} O-O {[%emt 0:00:06]} 9. O-O {[%emt 0:00:04]} Re8 {[%emt 0:00:13]} 10. Bf4 {[%emt 0:00:23]} Ne4 {[%emt 0:02:54]} 11. Nxe4 {[%emt 0:00:36]} Rxe4 {[%emt 0:00:04]} 12. Nd2 {[%emt 0:00:03]} Rxf4 {[%emt 0:01:10]} 13. gxf4 {[%emt 0:00:03]} Bxb2 {[%emt 0:00:57]} 14. Rb1 {[%emt 0:00:31]} Bg7 {[%emt 0:01:03]} 15. e4 {[%emt 0:01:59]} Qf6 {[%emt 0:02:53]} 16. Qf3 {[%emt 0:20:41]} Nd7 {[%emt 0:08:39]} 17. Rfe1 {[%emt 0:05:10]} Rb8 {[%emt 0:01:48]} 18. e5 {[%emt 0:03:31]} dxe5 {[%emt 0:09:31]} 19. fxe5 {[%emt 0:00:15]} Nxe5 {[%emt 0:05:32]} 20. Qxf6 {[%emt 0:03:04]} Bxf6 {[%emt 0:00:04]} 21. Ne4 {[%emt 0:01:47]} Kg7 {[%emt 0:01:46]} 22. Nxc5 {[%emt 0:01:30]} b6 {[%emt 0:00:29]} 23. Rb3 {[%emt 0:08:40]} Bf5 {[%emt 0:01:27]} 24. Ne4 {[%emt 0:08:46]} Bxe4 {[%emt 0:00:16]} 25. Rxe4 {[%emt 0:01:45]} Rd8 {[%emt 0:00:35]} 26. Ra4 {[%emt 0:03:04]} Rd7 {[%emt 0:02:56]} 27. f4 {[%emt 0:11:04]} Ng4 {[%emt 0:00:01]} 28. Rba3 {[%emt 0:05:25]} Be7 {[%emt 0:05:40]} 29. Rxa7 {[%emt 0:02:18]} Bc5+ {[%emt 0:00:09]} 30. Kf1 {[%emt 0:01:35]} Nxh2+ {[%emt 0:07:19]} 31. Ke2 {[%emt 0:00:06]} Rd6 {[%emt 0:00:18]} 32. Rd3 {[%emt 0:00:40]} Ng4 {[%emt 0:01:32]} 33. Bh3 {[%emt 0:00:46]} Nh6 {[%emt 0:05:37]} 34. Kf3 {[%emt 0:04:14]} Rf6 {[%emt 0:00:48]} 35. Ke4 {[%emt 0:02:19]} Bd6 {[%emt 0:02:36]} 36. Rf3 {[%emt 0:00:30]} Ng8 {[%emt 0:03:00]} 37. Rd7 {[%emt 0:01:38]} h5 {[%emt 0:02:49]} 38. Be6 {[%emt 0:04:06]} Bc5 {[%emt 0:00:03]} 39. Bh3 {[%emt 0:01:51]} Ne7 {[%emt 0:01:25]} 40. Rd3 {[%emt 0:02:32]} Bd6 {[%emt 0:01:21]} 41. Rf3 {[%emt 0:00:12]} Bc5 {[%emt 0:00:48]} 42. Rd3 {[%emt 0:00:15]} Nc8 {[%emt 0:01:29]} 43. Ke5 {[%emt 0:01:15]} Bd6+ {[%emt 0:00:33]} 44. Rxd6 {[%emt 0:00:23]} Nxd6 {[%emt 0:00:07]} 45. Rc3 {[%emt 0:00:19]} b5 {[%emt 0:03:56]} 46. Rc6 {[%emt 0:00:37]} Nc4+ {[%emt 0:00:14]} 47. Ke4 {[%emt 0:01:16]} h4 {[%emt 0:08:50]} 48. a4 {[%emt 0:01:03]} Rxc6 {[%emt 0:01:11]} 49. dxc6 {[%emt 0:00:02]} bxa4 {[%emt 0:00:19]} 50. Kd3 {[%emt 0:00:14]} a3 {[%emt 0:01:20]} 51. Kxc4 {[%emt 0:00:27]} a2 {[%emt 0:00:08]} 52. c7 {[%emt 0:00:04]} a1=Q {[%emt 0:00:06]} 53. c8=Q {[%emt 0:00:20]} Qc1+ {[%emt 0:00:22]} 54. Kd3 {[%emt 0:00:57]} Qxf4 {[%emt 0:00:15]} 55. Ke2 {[%emt 0:01:18]} Qh2+ {[%emt 0:00:34]} 56. Kf1 {[%emt 0:00:49]} f5 {[%emt 0:01:04]} 57. Bg2 {[%emt 0:00:43]} Qf4+ {[%emt 0:00:27]} 58. Kg1 {[%emt 0:00:10]} Qe3+ {[%emt 0:00:41]} 59. Kh1 {[%emt 0:00:55]} h3 {[%emt 0:01:32]} 60. Qb7+ {[%emt 0:00:08]} Kh6 {[%emt 0:00:21]} 61. Bd5 {[%emt 0:01:08]} f4 {[%emt 0:04:59]} 62. Qc6 {[%emt 0:02:58]} Qe1+ {[%emt 0:05:37]} 63. Kh2 {[%emt 0:00:06]} Qf2+ {[%emt 0:00:04]} 64. Kh1 {[%emt 0:00:08]} h2 {[%emt 0:00:07]} 65. Qc1 {[%emt 0:00:36]} Kh5 {[%emt 0:02:23]} 66. Bg2 {[%emt 0:00:35]} f3 {[%emt 0:00:30]} 67. Bxf3+ {[%emt 0:00:45]} Qxf3+ {[%emt 0:00:04]} 68. Kxh2 {[%emt 0:00:06]} Qe2+ {[%emt 0:01:17]} 69. Kg3 {[%emt 0:00:21]} Qg4+ {[%emt 0:00:21]} 70. Kh2 {[%emt 0:00:20]} Qf3 {[%emt 0:01:04]} 71. Qc2 {[%emt 0:00:39]} Qf4+ {[%emt 0:00:39]} 72. Kh1 {[%emt 0:00:17]} Qf3+ {[%emt 0:03:23]} 73. Kg1 {[%emt 0:00:08]} Qg3+ {[%emt 0:01:01]} 74. Kh1 {[%emt 0:00:06]} Qh3+ {[%emt 0:02:00]} 75. Kg1 {[%emt 0:00:06]} Qe3+ {[%emt 0:02:17]} 76. Kh1 {[%emt 0:00:06]} Qf3+ {[%emt 0:01:10]} 77. Kg1 {[%emt 0:00:06]} Qh3 {[%emt 0:00:33]} 78. Qc7 {[%emt 0:00:59]} Qe3+ {[%emt 0:00:30]} 79. Kh1 {[%emt 0:00:33]} g5 {[%emt 0:00:30]} 80. Qc2 {[%emt 0:00:48]} Kh4 {[%emt 0:00:30]} 81. Qh7+ {[%emt 0:00:34]} Kg4 {[%emt 0:00:08]} 82. Qc2 {[%emt 0:00:13]} Qe1+ {[%emt 0:00:23]} 83. Kh2 {[%emt 0:00:08]} Qg3+ {[%emt 0:00:32]} 84. Kh1 {[%emt 0:00:09]} Qf3+ {[%emt 0:00:12]} 85. Kg1 {[%emt 0:00:32]} Qf4 {[%emt 0:00:29]} 86. Kh1 {[%emt 0:00:35]} Kf3 {[%emt 0:00:27]} 87. Qf2+ {[%emt 0:00:18]} Kg4 {[%emt 0:00:27]} 88. Qc2 {[%emt 0:00:09]} Qe3 {[%emt 0:00:36]} 89. Qg2+ {[%emt 0:00:11]} Kh4 {[%emt 0:00:13]} 90. Qc2 {[%emt 0:00:25]} Qf3+ {[%emt 0:01:03]} 91. Kg1 {[%emt 0:00:05]} Qe3+ {[%emt 0:00:21]} 92. Kh1 {[%emt 0:00:01]} Qf4 {[%emt 0:00:38]} 93. Qh7+ {[%emt 0:00:12]} Kg4 {[%emt 0:00:12]} 94. Qc2 {[%emt 0:00:07]} Kf3 {[%emt 0:00:17]} 95. Qf2+ {[%emt 0:00:21]} Ke4 {[%emt 0:00:02]} 96. Qc2+ {[%emt 0:00:13]} Ke3 {[%emt 0:00:08]} 97. Qc3+ {[%emt 0:00:19]} Ke2 {[%emt 0:00:09]} 98. Qc2+ {[%emt 0:00:26]} Ke1 {[%emt 0:00:06]} 99. Qf2+ {[%emt 0:00:59]} Kd1 {[%emt 0:00:01]} 100. Kg2 {[%emt 0:00:17]} Qg4+ {[%emt 0:00:23]} 101. Qg3 {[%emt 0:00:22]} Qe2+ {[%emt 0:00:17]} 102. Qf2 {[%emt 0:00:09]} Qxf2+ {[%emt 0:00:54]} 103. Kxf2 {[%emt 0:00:02]} 1/2-1/2

[Event "1st Archibald 2019"]
[Site "Sochi"]
[Date "2019.05.19"]
[Round "9.22"]
[White "Yarikov, Artem"]
[Black "Yakimenko, Alexander A."]
[Result "0-1"]
[ECO "C01"]
[WhiteElo "1619"]
[BlackElo "2059"]
[Annotator "NA RC"]
[PlyCount "126"]
[EventDate "2019.05.12"]
[EventType "swiss"]
[EventCountry "RUS"]
[SourceTitle "playchess.com"]
[Source "ChessBase"]
[SourceQuality "1"]
[TimeControl "5400+30"]

1. e4 {[%emt 0:00:00]} e6 {[%emt 0:00:08]} 2. d4 {[%emt 0:00:05]} d5 {[%emt 0:00:04]} 3. exd5 {[%emt 0:00:06]} exd5 {[%emt 0:00:26]} 4. c4 {[%emt 0:00:06]} Bb4+ {[%emt 0:01:37]} 5. Nc3 {[%emt 0:00:11]} Qe7+ {[%emt 0:02:44]} 6. Qe2 {[%emt 0:03:48]} Nc6 {[%emt 0:02:20]} 7. Qxe7+ {[%emt 0:08:09]} Ngxe7 {[%emt 0:00:23]} 8. Nf3 {[%emt 0:03:57]} Bg4 {[%emt 0:07:42]} 9. Be3 {[%emt 0:02:23]} Nf5 {[%emt 0:11:41]} 10. O-O-O {[%emt 0:03:02]} Nxe3 {[%emt 0:01:12]} 11. fxe3 {[%emt 0:00:20]} dxc4 {[%emt 0:01:40]} 12. Bxc4 {[%emt 0:01:06]} O-O {[%emt 0:01:06]} 13. a3 {[%emt 0:02:42]} Bd6 {[%emt 0:05:36]} 14. h3 {[%emt 0:03:36]} Bxf3 {[%emt 0:07:24]} 15. gxf3 {[%emt 0:00:18]} Rfe8 {[%emt 0:00:52]} 16. Rhe1 {[%emt 0:04:52]} a6 {[%emt 0:04:41]} 17. Kb1 {[%emt 0:02:33]} Rab8 {[%emt 0:02:36]} 18. Ka2 {[%emt 0:24:34]} b5 {[%emt 0:03:46]} 19. Bd5 {[%emt 0:03:47]} Ne7 {[%emt 0:00:18]} 20. Be4 {[%emt 0:00:58]} c6 {[%emt 0:04:47]} 21. b4 {[%emt 0:03:14]} a5 {[%emt 0:06:44]} 22. Kb3 {[%emt 0:01:05]} Red8 {[%emt 0:04:13]} 23. Bd3 {[%emt 0:05:37]} f5 {[%emt 0:01:54]} 24. Bc2 {[%emt 0:05:50]} g6 {[%emt 0:02:48]} 25. Re2 {[%emt 0:03:02]} Rd7 {[%emt 0:03:41]} 26. Red2 {[%emt 0:02:46]} Ra7 {[%emt 0:00:50]} 27. Bb1 {[%emt 0:04:45]} Rba8 {[%emt 0:03:52]} 28. Ra2 {[%emt 0:01:31]} Nd5 {[%emt 0:01:06]} 29. Nxd5 {[%emt 0:07:23]} cxd5 {[%emt 0:00:14]} 30. Rc1 {[%emt 0:01:57]} Ra6 {[%emt 0:05:29]} 31. Rc3 {[%emt 0:01:05]} Kf7 {[%emt 0:04:01]} 32. Rc1 {[%emt 0:00:16]} Ke7 {[%emt 0:00:50]} 33. Re1 {[%emt 0:00:14]} axb4 {[%emt 0:01:37]} 34. axb4 {[%emt 0:00:07]} Rxa2 {[%emt 0:00:12]} 35. Bxa2 {[%emt 0:00:07]} Bxb4 {[%emt 0:00:50]} 36. Re2 {[%emt 0:00:47]} Bd6 {[%emt 0:00:14]} 37. e4 {[%emt 0:01:01]} dxe4 {[%emt 0:02:19]} 38. fxe4 {[%emt 0:00:09]} fxe4 {[%emt 0:01:06]} 39. Rxe4+ {[%emt 0:00:09]} Kf6 {[%emt 0:00:26]} 40. Kb2 {[%emt 0:00:15]} Kf5 {[%emt 0:00:54]} 41. Rg4 {[%emt 0:00:39]} Ra3 {[%emt 0:00:41]} 42. Bb3 {[%emt 0:00:33]} Ra7 {[%emt 0:00:10]} 43. Bc2+ {[%emt 0:00:14]} Kf6 {[%emt 0:00:08]} 44. Re4 {[%emt 0:00:44]} Ba3+ {[%emt 0:01:02]} 45. Kb3 {[%emt 0:00:57]} Bd6 {[%emt 0:00:18]} 46. Kb2 {[%emt 0:00:10]} Re7 {[%emt 0:01:04]} 47. Rxe7 {[%emt 0:01:17]} Bxe7 {[%emt 0:00:06]} 48. Bd3 {[%emt 0:00:24]} b4 {[%emt 0:00:07]} 49. Kc2 {[%emt 0:00:10]} Kg5 {[%emt 0:00:11]} 50. Bc4 {[%emt 0:00:21]} Kh4 {[%emt 0:01:42]} 51. Be6 {[%emt 0:00:06]} h5 {[%emt 0:00:37]} 52. Kd3 {[%emt 0:00:18]} g5 {[%emt 0:00:07]} 53. Ke2 {[%emt 0:00:27]} Kg3 {[%emt 0:00:21]} 54. Ke3 {[%emt 0:00:33]} Kg2 {[%emt 0:02:43]} 55. Ke2 {[%emt 0:00:38]} g4 {[%emt 0:01:04]} 56. hxg4 {[%emt 0:00:32]} h4 {[%emt 0:00:05]} 57. Kd3 {[%emt 0:00:23]} Kg3 {[%emt 0:01:28]} 58. Kc4 {[%emt 0:00:33]} Kf4 {[%emt 0:00:11]} 59. Kb3 {[%emt 0:01:54]} h3 {[%emt 0:00:12]} 60. g5 {[%emt 0:00:31]} h2 {[%emt 0:00:07]} 61. g6 {[%emt 0:00:10]} h1=Q {[%emt 0:00:28]} 62. g7 {[%emt 0:00:14]} Qf3+ {[%emt 0:01:00]} 63. Kb2 {[%emt 0:00:58]} Qg2+ {[%emt 0:00:10]} 0-1